bitfinex/quotes_ETHUSD_20230111
["timestamp","ask_amount","ask_price","bid_price","bid_amount"]
[1673479265152,36.19382,1356.5,1356.3,0.066]
[1673479265321,36.19382,1356.5,1356.2,3.04998105]
[1673479267412,43.56573,1356.5,1356.2,3.04998105]
[1673479268706,43.56773,1356.5,1356.2,3.04998105]
[1673479268933,43.56573,1356.5,1356.2,3.04998105]
[1673479270046,7.45,1356.5,1356.2,21.43941523]
[1673479270261,7.45,1356.5,1356.2,24.44396233]
[1673479270462,7.45,1356.5,1356.2,31.81750233]
[1673479270719,7.45,1356.5,1356.2,24.44396233]
[1673479271041,22.19385,1356.5,1356.2,17.07043233]
[1673479271259,29.56579,1356.5,1356.2,8.41898105]
[1673479272299,14.0,1356.4,1356.2,8.41898105]
[1673479272511,21.37262,1356.4,1356.2,8.41898105]
[1673479273037,28.74524,1356.4,1356.2,4.41898105]
[1673479273203,36.11786,1356.4,1356.2,4.35298105]
[1673479273652,22.11786,1356.4,1356.2,4.35298105]
[1673479273875,36.11786,1356.4,1356.2,4.35298105]
[1673479274504,36.11786,1356.4,1356.2,3.04998105]
[1673479275092,36.11786,1356.4,1356.2,3.04768055]
[1673479275459,44.36552064,1356.4,1356.2,3.04768055]
[1673479275768,7.45,1356.3,1356.2,3.04768055]
[1673479276094,29.569,1356.3,1356.2,3.04768055]
[1673479283791,33.36666064,1356.3,1356.2,3.04768055]
[1673479284387,8.45,1356.2,1356.1,0.50599576]
[1673479284599,51.92148064,1356.2,1356.1,0.50599576]
[1673479284808,4.45,1356.0,1355.8,0.05572668]
[1673479285021,44.37317064,1355.9,1355.8,0.05572668]
[1673479285750,47.37317064,1355.9,1355.8,0.05572668]
[1673479288063,47.37317064,1355.9,1355.8,0.44400523]
[1673479289526,47.37517064,1355.9,1355.8,0.44400523]
[1673479289769,47.37317064,1355.9,1355.8,0.44400523]
[1673479291789,25.24766064,1355.9,1355.8,0.44400523]
[1673479292650,32.62283064,1355.9,1355.8,0.44400523]
[1673479293031,47.37317064,1355.9,1355.8,0.44400523]
[1673479294087,39.99800064,1355.9,1355.8,0.44400523]
[1673479294325,47.37317064,1355.9,1355.8,0.44400523]
[1673479294724,36.20034,1355.9,1355.8,0.44400523]
[1673479295333,43.57551,1355.9,1355.8,0.44400523]
[1673479295575,36.20034,1355.9,1355.8,0.44400523]
[1673479295800,43.57551,1355.9,1355.8,0.44400523]
[1673479296218,36.20034,1355.9,1355.8,0.44400523]
[1673479296750,28.82517,1355.9,1355.8,0.44400523]
[1673479297077,36.20034,1355.9,1355.8,0.44400523]
[1673479298307,28.82517,1355.9,1355.8,0.44400523]
[1673479298711,43.57551,1355.9,1355.8,0.44400523]
[1673479300491,21.45,1355.9,1355.8,0.44400523]
[1673479300700,47.37317064,1355.9,1355.8,0.44400523]
[1673479302167,47.37517064,1355.9,1355.8,0.44400523]
[1673479302444,47.37317064,1355.9,1355.8,0.44400523]
[1673479305998,47.37317064,1355.9,1355.8,0.44189122]
[1673479317013,33.37317064,1355.9,1355.8,0.44189122]
[1673479318315,47.37317064,1355.9,1355.8,0.44189122]
[1673479319866,47.12317064,1355.9,1355.8,0.44189122]
[1673479321993,39.74800064,1355.9,1355.8,0.44189122]
[1673479322377,7.44093,1356.0,1355.8,3.13289122]
[1673479322580,18.516,1356.1,1355.9,1.41159673]
[1673479322838,18.45,1356.1,1355.9,7.07468899]
[1673479322999,18.45,1356.1,1355.9,7.14068899]
[1673479323425,18.45,1356.1,1355.9,1.47759673]
[1673479323634,18.45,1356.1,1355.9,1.41159673]
[1673479324721,18.45,1356.1,1355.9,2.71459673]
[1673479325776,40.57258,1356.1,1355.9,2.71459673]
[1673479326120,44.37024064,1356.1,1355.9,1.09830761]
[1673479326337,29.57389,1356.0,1355.9,1.09830761]
[1673479326703,34.30817807,1356.0,1355.9,1.09830761]
[1673479333681,34.53817807,1356.0,1355.9,1.09830761]
[1673479334778,35.83717807,1356.0,1355.9,1.09830761]
[1673479336615,35.80055894,1356.0,1355.9,1.09830761]
[1673479339880,34.86393151,1356.0,1355.9,1.09830761]
[1673479343914,34.86393151,1356.0,1355.9,1.48838544]
[1673479347185,34.86593151,1356.0,1355.9,1.48838544]
[1673479347395,34.86393151,1356.0,1355.9,1.48838544]
[1673479350637,33.33493151,1356.0,1355.9,1.48838544]
[1673479350875,18.58567151,1356.0,1355.9,1.64258525]
[1673479351115,14.066,1356.1,1355.9,7.30567751]
[1673479351284,14.0,1356.1,1356.0,5.66309226]
[1673479351477,14.0,1356.1,1356.0,6.46626001]
[1673479352158,48.07249,1356.4,1356.0,9.07026001]
[1673479352159,14.0,1356.3,1356.0,9.07026001]
[1673479352331,14.0,1356.3,1356.2,2.598]
[1673479352533,14.0,1356.3,1356.2,8.26109226]
[1673479352746,14.0,1356.3,1356.2,2.664]
[1673479352949,14.0,1356.3,1356.2,3.83070923]
[1673479355525,14.0,1356.3,1356.2,10.79680149]
[1673479355833,0.066,1356.4,1356.2,36.98342149]
[1673479355996,3.066,1356.6,1356.3,15.62431714]
[1673479356202,3.0,1356.6,1356.5,1.303]
[1673479357619,29.56408,1356.6,1356.3,2.617]
[1673479357780,30.11708,1356.6,1356.4,1.303]
[1673479357990,29.56408,1356.6,1356.4,1.303]
[1673479360255,34.45053474,1356.6,1356.3,1.295]
[1673479360621,9.0031,1356.5,1356.3,1.295]
[1673479360830,10.37245,1356.4,1356.3,1.295]
[1673479361040,25.11735,1356.4,1356.3,1.295]
[1673479361484,25.11935,1356.4,1356.3,1.295]
[1673479361699,30.19067474,1356.4,1356.3,1.295]
[1673479361910,30.19067474,1356.4,1356.2,1.303]
[1673479362465,29.56735,1356.4,1356.2,1.303]
[1673479362771,4.45,1356.1,1356.0,20.5678]
[1673479362987,36.94632,1356.1,1356.0,0.099]
[1673479363304,40.74398064,1356.1,1355.9,1.48838544]
[1673479363456,25.99692064,1356.0,1355.9,1.48838544]
[1673479363875,25.99892064,1356.0,1355.9,1.48838544]
[1673479364116,25.99692064,1356.0,1355.9,1.48838544]
[1673479364935,33.37155064,1356.0,1355.9,1.48838544]
[1673479367075,47.37155064,1356.0,1355.9,1.48838544]
[1673479370542,47.37155064,1356.0,1355.9,1.38838544]
[1673479371463,47.37155064,1356.0,1355.9,1.33838544]
[1673479374266,47.37155064,1356.0,1355.9,1.23838544]
[1673479375056,17.0,1356.0,1355.9,2.67058525]
[1673479375318,14.0,1356.0,1355.9,8.30969885]
[1673479375628,11.89022,1356.1,1355.9,12.40869885]
[1673479375851,7.37422,1356.1,1356.0,6.92294336]
[1673479376001,7.37422,1356.1,1356.0,8.26089622]
[1673479376210,7.37422,1356.1,1356.0,2.63895286]
[1673479376437,7.37422,1356.1,1356.0,2.53995286]
[1673479376671,7.516,1356.2,1356.0,8.16189622]
[1673479376890,4.45,1356.2,1356.0,8.26089622]
[1673479377212,11.82354,1356.2,1356.1,0.82608962]
[1673479377425,19.19708,1356.2,1356.1,0.82608962]
[1673479377792,26.57062,1356.2,1356.1,0.82608962]
[1673479378361,14.82354,1356.2,1356.1,0.82608962]
[1673479379104,22.19708,1356.2,1356.1,0.82608962]
[1673479380156,29.57062,1356.2,1356.1,0.82608962]
[1673479380318,29.57062,1356.2,1356.0,2.53995286]
[1673479381693,29.57062,1356.2,1356.0,2.48995286]
[1673479383044,14.0,1356.1,1356.0,1.251]
[1673479383259,17.79766064,1356.1,1355.9,2.64038544]
[1673479383468,17.79766064,1356.1,1355.9,2.54138544]
[1673479383469,30.37155064,1356.0,1355.9,2.54138544]
[1673479383672,30.37155064,1356.0,1355.8,0.15261267]
[1673479383673,33.92485064,1356.0,1355.8,0.15261267]
[1673479383900,25.24766064,1355.9,1355.8,0.05361267]
[1673479384202,47.37317064,1355.9,1355.7,20.98113381]
[1673479384617,8.24766064,1355.8,1355.7,0.15633381]
[1673479384835,22.99908064,1355.8,1355.7,0.05733381]
[1673479385984,30.37479064,1355.8,1355.7,0.05733381]
[1673479386420,22.99908064,1355.8,1355.7,0.00733381]
[1673479388045,30.37479064,1355.8,1355.7,0.00733381]
[1673479390137,17.066,1355.9,1355.7,0.00733381]
[1673479390327,36.20108,1355.9,1355.7,2.00247134]
[1673479390731,28.82537,1355.9,1355.8,1.303]
[1673479390944,36.20077,1355.9,1355.8,1.303]
[1673479391380,43.57617,1355.9,1355.8,1.303]
[1673479391618,43.57617,1355.9,1355.7,1.40933381]
[1673479391809,43.57617,1355.9,1355.7,1.31033381]
[1673479393674,14.0,1355.9,1355.8,21.63273482]
[1673479393788,0.066,1356.0,1355.8,23.03373482]
[1673479394001,18.45,1356.1,1355.8,23.03373482]
[1673479394002,18.45,1356.1,1355.9,1.296]
[1673479394361,22.24766064,1356.1,1355.9,14.24946482]
[1673479394536,21.37415,1356.1,1356.0,1.303]
[1673479394732,21.37415,1356.1,1356.0,2.00103148]
[1673479396570,14.0,1356.1,1356.0,2.00103148]
[1673479396818,21.37408,1356.1,1356.0,2.00103148]
[1673479397205,21.37408,1356.1,1356.0,1.95103148]
[1673479398136,28.74816,1356.1,1356.0,1.95103148]
[1673479399409,21.37408,1356.1,1356.0,1.95103148]
[1673479400164,28.74816,1356.1,1356.0,1.95103148]
[1673479400356,21.37408,1356.1,1356.0,1.95103148]
[1673479401624,14.0,1356.1,1356.0,1.95103148]
[1673479401838,0.066,1356.2,1356.1,1.95211419]
[1673479402044,14.0,1356.3,1356.1,34.74387012]
[1673479402230,14.0,1356.3,1356.2,5.57831482]
[1673479402446,14.0,1356.3,1356.2,5.67731482]
[1673479403088,0.066,1356.4,1356.2,5.67731482]
[1673479403333,0.002,1356.4,1356.3,1.303]
[1673479403525,17.0,1356.4,1356.3,1.303]
[1673479404435,39.11735,1356.4,1356.2,1.38]
[1673479404651,39.11735,1356.4,1356.2,1.302]
[1673479405287,25.11735,1356.4,1356.2,1.302]
[1673479405501,28.746,1356.3,1356.2,1.302]
[1673479405956,22.119,1356.3,1356.2,1.302]
[1673479406172,36.119,1356.3,1356.2,1.302]
[1673479409512,36.121,1356.3,1356.2,1.302]
[1673479409764,36.119,1356.3,1356.2,1.302]
[1673479410645,40.569,1356.3,1356.2,1.302]
[1673479412452,40.569,1356.3,1356.1,1.301]
[1673479414915,40.569,1356.3,1356.0,31.9169]
[1673479417617,40.569,1356.3,1356.0,37.49521482]
[1673479418020,40.569,1356.3,1356.0,31.9169]
[1673479418243,40.569,1356.3,1356.0,37.49521482]
[1673479418438,40.569,1356.3,1356.0,31.9169]
[1673479418676,40.569,1356.3,1356.0,37.49521482]
[1673479418890,40.569,1356.3,1356.0,31.9169]
[1673479419776,33.196,1356.3,1356.1,1.303]
[1673479420028,33.196,1356.3,1356.1,5.303]
[1673479420172,18.45,1356.3,1356.1,5.402]
[1673479420610,18.45,1356.3,1356.1,25.72822482]
[1673479420819,18.45,1356.3,1356.1,32.2202703]
[1673479421031,18.45,1356.3,1356.2,1.301]
[1673479423323,14.0,1356.3,1356.2,20.65251546]
[1673479423531,3.066,1356.4,1356.3,3.04699918]
[1673479423742,17.0,1356.4,1356.3,24.7818261]
[1673479424004,17.0,1356.4,1356.3,32.2538261]
[1673479424161,3.0,1356.4,1356.3,32.2538261]
[1673479424371,3.066,1356.5,1356.3,32.2538261]
[1673479424626,14.0,1356.4,1356.3,29.6478261]
[1673479424835,3.0,1356.4,1356.3,23.5778261]
[1673479425031,17.0,1356.4,1356.3,30.9508261]
[1673479425236,17.0,1356.4,1356.3,25.37251128]
[1673479425464,17.0,1356.4,1356.3,3.14599918]
[1673479425677,17.0,1356.4,1356.3,3.04699918]
[1673479426376,24.37245,1356.4,1356.3,3.04699918]
[1673479426583,31.7449,1356.4,1356.3,3.04699918]
[1673479427104,17.0,1356.4,1356.3,3.04699918]
[1673479432264,17.0,1356.4,1356.3,12.4053194]
[1673479432473,17.0,1356.4,1356.3,27.2503194]
[1673479432685,17.0,1356.4,1356.3,19.8773194]
[1673479433221,17.0,1356.4,1356.3,4.44899918]
[1673479433563,17.0,1356.4,1356.3,4.34999918]
[1673479433776,3.0,1356.4,1356.3,4.34999918]
[1673479433934,14.0,1356.4,1356.3,11.72299918]
[1673479434297,17.0,1356.4,1356.3,11.82199918]
[1673479434558,17.0,1356.4,1356.3,4.44899918]
[1673479434868,17.0,1356.4,1356.3,11.72299918]
[1673479435026,3.0,1356.4,1356.3,11.82199918]
[1673479435241,3.6191,1356.5,1356.3,11.82199918]
[1673479435589,3.6191,1356.5,1356.3,24.773314]
[1673479435590,14.0,1356.4,1356.3,24.773314]
[1673479435801,17.0,1356.4,1356.3,19.19499918]
[1673479436142,0.066,1356.5,1356.3,41.86329511]
[1673479436306,0.014,1356.5,1356.4,38.67309282]
[1673479436499,0.1647726,1356.7,1356.5,0.042]
[1673479436706,0.1647726,1356.7,1356.6,23.41708]
[1673479436952,0.1647726,1356.7,1356.6,29.09439482]
[1673479437161,0.1647726,1356.7,1356.6,32.39182991]
[1673479437352,0.1647726,1356.7,1356.6,40.64540614]
[1673479437579,0.1647726,1356.7,1356.6,36.01821395]
[1673479437771,0.1647726,1356.7,1356.6,38.92442569]
[1673479437988,0.1647726,1356.7,1356.6,38.69442569]
[1673479438226,0.1647726,1356.7,1356.6,26.74977055]
[1673479438602,0.1647726,1356.7,1356.6,34.12113055]
[1673479439271,1.7077726,1356.7,1356.6,10.07636]
[1673479439485,1.7077726,1356.7,1356.6,0.099]
[1673479439809,4.7077726,1356.7,1356.5,0.141]
[1673479439979,4.7077726,1356.7,1356.5,0.042]
[1673479440410,12.0786126,1356.7,1356.5,0.042]
[1673479441776,19.4494326,1356.7,1356.5,0.042]
[1673479442214,26.8202326,1356.7,1356.5,0.042]
[1673479442887,19.4494126,1356.7,1356.5,0.042]
[1673479443039,26.8202326,1356.7,1356.5,0.042]
[1673479443244,0.553,1356.6,1356.5,0.042]
[1673479443498,7.92436,1356.6,1356.5,0.042]
[1673479443717,10.37136,1356.6,1356.5,0.042]
[1673479443922,3.0,1356.6,1356.5,1.585]
[1673479444132,0.7837726,1356.7,1356.5,18.5926763]
[1673479444369,0.1667726,1356.7,1356.5,33.4324963]
[1673479444523,0.1647726,1356.7,1356.6,5.57831482]
[1673479444869,0.1647726,1356.7,1356.6,31.79139482]
[1673479445084,0.1647726,1356.7,1356.6,36.11767045]
[1673479445713,0.1647726,1356.7,1356.6,30.53935563]
[1673479445900,0.1647726,1356.7,1356.6,28.74631045]
[1673479447343,1e-08,1356.7,1356.6,36.11767045]
[1673479447824,1e-08,1356.7,1356.6,39.91533109]
[1673479448130,1e-08,1356.7,1356.6,42.52033109]
[1673479448748,1e-08,1356.7,1356.6,4.42527563]
[1673479448970,1e-08,1356.7,1356.5,19.4780663]
[1673479449142,7.37091001,1356.7,1356.5,13.89975148]
[1673479449567,1e-08,1356.7,1356.5,13.89975148]
[1673479449762,1e-08,1356.7,1356.5,31.9044163]
[1673479450391,1e-08,1356.7,1356.6,5.57831482]
[1673479450602,1e-08,1356.7,1356.6,37.02607215]
[1673479451915,1e-08,1356.7,1356.6,2.93201669]
[1673479452122,1e-08,1356.7,1356.6,2.83301669]
[1673479452282,1e-08,1356.7,1356.5,24.5317963]
[1673479452492,1e-08,1356.7,1356.5,11.58185148]
[1673479452752,1e-08,1356.7,1356.5,17.1601663]
[1673479453065,1e-08,1356.7,1356.5,11.58185148]
[1673479453377,1e-08,1356.7,1356.5,4.21045148]
[1673479453592,1e-08,1356.7,1356.5,11.48335148]
[1673479453755,1e-08,1356.7,1356.5,17.1606663]
[1673479453966,1e-08,1356.7,1356.5,15.58235148]
[1673479454211,1e-08,1356.7,1356.6,8.92959515]
[1673479454435,1e-08,1356.7,1356.6,31.95562997]
[1673479454808,1e-08,1356.7,1356.6,24.58426997]
[1673479455061,1e-08,1356.7,1356.6,28.38193061]
[1673479455219,1e-08,1356.7,1356.6,35.75329061]
[1673479457370,1e-08,1356.7,1356.6,35.98329061]
[1673479457952,1e-08,1356.7,1356.6,55.98329061]
[1673479459232,1e-08,1356.7,1356.6,55.75329061]
[1673479459476,1e-08,1356.7,1356.6,57.58227193]
[1673479459869,1e-08,1356.7,1356.6,55.75329061]
[1673479460530,0.15454512,1356.9,1356.7,4.00199999]
[1673479460838,0.15454512,1356.9,1356.8,17.98676]
[1673479461051,0.15454512,1356.9,1356.8,25.45604]
[1673479461423,0.15454512,1356.9,1356.8,0.099]
[1673479461668,0.15454512,1356.9,1356.7,0.10099999]
[1673479462001,0.15454512,1356.9,1356.7,0.00199999]
[1673479462210,0.70744512,1356.9,1356.7,0.00199999]
[1673479463558,22.07732512,1356.9,1356.7,0.00199999]
[1673479463894,3.0,1356.8,1356.7,0.00199999]
[1673479464054,10.37028,1356.8,1356.7,0.00199999]
[1673479464274,25.11084,1356.8,1356.7,0.00199999]
[1673479464586,3.0,1356.8,1356.7,0.00199999]
[1673479465008,1.90240315,1356.8,1356.7,14.74363999]
[1673479465222,1.90240315,1356.8,1356.7,14.84263999]
[1673479465445,1.90020205,1356.8,1356.7,14.84263999]
[1673479465943,1.90020205,1356.8,1356.7,1.64399999]
[1673479466155,0.15454512,1356.9,1356.7,8.91581999]
[1673479466465,0.15454512,1356.9,1356.7,14.57626143]
[1673479467132,3.15454512,1356.9,1356.7,21.94708143]
[1673479467338,3.15454512,1356.9,1356.7,18.03835757]
[1673479467530,3.15454512,1356.9,1356.7,25.40917757]
[1673479467724,0.15454512,1356.9,1356.7,32.77999757]
[1673479467968,0.15454512,1356.9,1356.7,25.40917757]
[1673479468208,4.701809,1357.0,1356.8,3.79766064]
[1673479468209,1.701809,1357.0,1356.8,3.79766064]
[1673479468425,40.764,1357.1,1357.0,5.70180899]
[1673479468426,0.066,1357.1,1357.0,5.70180899]
[1673479468721,30.766,1357.6,1357.0,50.96955125]
[1673479468935,19.18193,1357.6,1357.1,9.89266226]
[1673479469151,8.836284,1357.7,1357.3,14.73458]
[1673479469152,0.917924,1357.7,1357.3,14.73458]
[1673479469306,0.851924,1357.7,1357.4,14.21000162]
[1673479469524,1.146754,1357.7,1357.4,21.67602162]
[1673479470293,1.146754,1357.7,1357.5,5.08866064]
[1673479470635,1.146754,1357.7,1357.5,0.099]
[1673479470794,1.146754,1357.7,1357.3,0.5527]
[1673479471012,5.598754,1357.7,1357.3,0.5527]
[1673479471342,5.598754,1357.7,1357.5,5.296]
[1673479471343,1.146754,1357.7,1357.5,5.296]
[1673479471560,1.146754,1357.7,1357.6,21.57299314]
[1673479471725,1.146754,1357.7,1357.6,21.67199314]
[1673479471941,1.146754,1357.7,1357.6,25.30556752]
[1673479472848,1.148754,1357.7,1357.6,25.30256752]
[1673479473020,1.146754,1357.7,1357.6,25.30556752]
[1673479473798,1.146754,1357.7,1357.6,32.67149752]
[1673479474010,1.146754,1357.7,1357.6,0.099]
[1673479474218,4.146754,1357.7,1357.5,20.099]
[1673479474431,18.877534,1357.7,1357.5,20.099]
[1673479474622,4.146754,1357.7,1357.5,0.099]
[1673479474958,4.146754,1357.7,1357.4,7.46601]
[1673479475168,4.146754,1357.7,1357.4,2.03842551]
[1673479475478,4.146754,1357.7,1357.4,16.67325551]
[1673479475817,4.146754,1357.7,1357.4,34.78213777]
[1673479475958,1.146754,1357.7,1357.6,14.73186]
[1673479476175,1.146754,1357.7,1357.6,7.46493]
[1673479477215,4.146754,1357.7,1357.6,9.63254816]
[1673479477459,1.146754,1357.7,1357.6,9.63254816]
[1673479477790,1.146754,1357.7,1357.6,0.099]
[1673479478109,4.146754,1357.7,1357.5,7.36601]
[1673479478418,1.146754,1357.7,1357.5,22.19724]
[1673479478792,8.512144,1357.7,1357.5,0.099]
[1673479479002,8.512144,1357.7,1357.4,1.402]
[1673479479260,23.242924,1357.7,1357.3,6.94420162]
[1673479479466,23.242924,1357.7,1357.3,1.402]
[1673479479680,23.242924,1357.7,1357.3,1.303]
[1673479479901,15.877534,1357.7,1357.3,1.303]
[1673479480057,23.242924,1357.7,1357.3,1.303]
[1673479480264,15.877534,1357.7,1357.3,16.03803]
[1673479480477,15.877534,1357.7,1357.3,14.31167162]
[1673479480685,23.242924,1357.7,1357.3,1.402]
[1673479480896,23.242924,1357.7,1357.3,1.303]
[1673479481151,4.45,1357.6,1357.3,1.303]
[1673479481345,11.81603,1357.6,1357.3,7.3674]
[1673479481554,11.81603,1357.6,1357.3,7.4664]
[1673479481769,4.45,1357.6,1357.3,7.4664]
[1673479481945,4.45,1357.6,1357.3,14.83396]
[1673479483064,11.81597,1357.6,1357.3,7.4664]
[1673479483395,8.18593,1357.8,1357.3,7.4664]
[1673479483396,0.67593,1357.8,1357.5,16.03596]
[1673479483553,0.67593,1357.8,1357.6,9.34368726]
[1673479483732,0.67593,1357.8,1357.7,24.07446726]
[1673479483947,0.67593,1357.8,1357.7,27.38262499]
[1673479484580,0.67593,1357.8,1357.7,34.74801499]
[1673479484957,0.67593,1357.8,1357.7,8.40881837]
[1673479484958,0.62593,1357.8,1357.7,8.40881837]
[1673479485259,0.62593,1357.8,1357.7,7.46439]
[1673479485460,0.62593,1357.8,1357.7,0.099]
[1673479485621,0.62593,1357.8,1357.6,4.0]
[1673479486042,0.62593,1357.8,1357.6,15.16319064]
[1673479486297,0.62593,1357.8,1357.6,28.17519264]
[1673479486492,0.62593,1357.8,1357.7,17.54829926]
[1673479486703,0.62593,1357.8,1357.7,28.2950319]
[1673479488527,0.62593,1357.8,1357.7,35.6604219]
[1673479488528,1e-08,1357.8,1357.7,35.6604219]
[1673479489772,1e-08,1357.8,1357.7,10.28190926]
[1673479490084,1e-08,1357.8,1357.7,17.64729926]
[1673479490614,1e-08,1357.8,1357.7,25.01268926]
[1673479490781,1e-08,1357.8,1357.7,2.91651926]
[1673479490996,1e-08,1357.8,1357.7,10.18290926]
[1673479491190,1e-08,1357.8,1357.7,0.099]
[1673479491400,1e-08,1357.8,1357.5,20.099]
[1673479491401,14.72970001,1357.8,1357.5,20.099]
[1673479491661,3.0,1357.7,1357.5,20.099]
[1673479491833,3.0,1357.7,1357.5,0.099]
[1673479492032,3.0,1357.7,1357.3,57.86214]
[1673479492393,3.0,1357.7,1357.4,5.786214]
[1673479492609,3.0,1357.7,1357.4,0.099]
[1673479492770,3.5526,1357.7,1357.3,57.86214]
[1673479493192,3.5526,1357.7,1357.3,63.38778954]
[1673479493395,3.5526,1357.7,1357.3,70.75534954]
[1673479493660,3.0,1357.7,1357.3,70.75534954]
[1673479493877,3.0,1357.7,1357.4,7.07553495]
[1673479494030,3.0,1357.7,1357.4,18.54144495]
[1673479494655,3.0,1357.7,1357.4,14.54144495]
[1673479495233,25.09623,1357.7,1357.4,0.099]
[1673479495392,25.09623,1357.7,1357.3,50.495]
[1673479495598,19.753,1357.6,1357.3,0.099]
[1673479495862,25.09944,1357.5,1357.1,5.52564954]
[1673479496029,25.09944,1357.5,1357.1,20.099]
[1673479496546,14.73512,1357.3,1357.1,20.099]
[1673479496760,22.10268,1357.3,1357.1,20.099]
[1673479496970,3.0,1357.2,1357.1,0.099]
[1673479497228,3.0,1357.2,1357.0,1.84645776]
[1673479497409,3.0,1357.2,1357.0,1.74745776]
[1673479497757,10.36811,1357.2,1357.0,1.74745776]
[1673479497971,3.0,1357.2,1357.0,1.74745776]
[1673479498272,3.0,1357.2,1357.0,2.65915254]
[1673479498505,17.73679,1357.2,1357.0,2.65915254]
[1673479498700,17.73679,1357.2,1357.0,1.74745776]
[1673479499764,3.0,1357.2,1357.0,1.74745776]
[1673479499920,0.066,1357.3,1357.0,16.48566776]
[1673479500130,0.5527,1357.4,1357.0,33.27664211]
[1673479500486,15.28619,1357.5,1357.1,23.58962792]
[1673479500679,15.28619,1357.5,1357.1,23.68862792]
[1673479501086,22.65307,1357.5,1357.1,16.32005792]
[1673479501309,22.65307,1357.5,1357.1,8.95178792]
[1673479501705,10.36727,1357.4,1357.1,8.95178792]
[1673479501949,10.36727,1357.4,1357.1,3.42666421]
[1673479502309,17.73454,1357.4,1357.1,3.32766421]
[1673479502483,10.36727,1357.4,1357.1,3.32766421]
[1673479502674,17.73429,1357.4,1357.1,3.32766421]
[1673479502888,10.36702,1357.4,1357.1,3.32766421]
[1673479503093,10.36702,1357.4,1357.1,16.22193375]
[1673479503338,3.0,1357.4,1357.1,10.79528421]
[1673479503652,3.0,1357.4,1357.2,1.07952842]
[1673479503960,3.066,1357.5,1357.2,1.07952842]
[1673479504114,3.066,1357.5,1357.3,7.36721]
[1673479504115,3.0,1357.5,1357.3,7.36721]
[1673479504326,10.98462,1357.6,1357.3,7.46621]
[1673479504537,10.36602,1357.6,1357.3,7.46621]
[1673479504746,7.36602,1357.6,1357.3,10.19435384]
[1673479504956,19.80005,1357.7,1357.4,3.79766064]
[1673479504957,0.066,1357.7,1357.4,3.79766064]
[1673479505217,30.70000001,1357.8,1357.6,14.73186]
[1673479505390,1e-08,1357.8,1357.7,14.73078]
[1673479505587,1e-08,1357.8,1357.7,0.099]
[1673479505798,1e-08,1357.8,1357.7,1.86281406]
[1673479508783,1e-08,1357.8,1357.6,0.099]
[1673479509105,4.0,1357.7,1357.5,20.099]
[1673479509317,8.91093812,1357.6,1357.5,0.099]
[1673479509479,26.64279812,1357.6,1357.2,31.1023]
[1673479509691,26.64279812,1357.6,1357.2,54.89996064]
[1673479509909,26.64279812,1357.6,1357.2,51.1023]
[1673479510433,19.27686812,1357.6,1357.2,51.1023]
[1673479510643,19.27686812,1357.6,1357.2,62.53031754]
[1673479510914,11.91093812,1357.6,1357.2,62.53031754]
[1673479511275,11.91093812,1357.6,1357.2,69.89839754]
[1673479511744,11.91093812,1357.6,1357.2,77.26650754]
[1673479511955,26.64279812,1357.6,1357.2,62.53031754]
[1673479512338,19.27686812,1357.6,1357.2,69.89829754]
[1673479512696,3.00200812,1357.6,1357.3,25.72484975]
[1673479512851,17.73403812,1357.6,1357.3,11.08882975]
[1673479514383,17.73403812,1357.6,1357.3,11.08634139]
[1673479514687,10.36803812,1357.6,1357.3,23.97951093]
[1673479514847,0.00200812,1357.6,1357.4,9.65760063]
[1673479515062,0.00200812,1357.6,1357.5,28.05627018]
[1673479515385,0.00200812,1357.6,1357.5,35.52175018]
[1673479515807,0.00200812,1357.6,1357.5,37.80845018]
[1673479516164,0.00200812,1357.6,1357.5,42.96575131]
[1673479516478,1e-08,1357.8,1357.6,4.0]
[1673479516686,1e-08,1357.8,1357.7,11.27231018]
[1673479516902,1e-08,1357.8,1357.7,53.63378018]
[1673479517212,1e-08,1357.8,1357.7,38.90300018]
[1673479517367,1e-08,1357.8,1357.7,44.00501334]
[1673479517726,1e-08,1357.8,1357.7,36.63962334]
[1673479518846,1e-08,1357.8,1357.7,44.00501334]
[1673479519053,1e-08,1357.8,1357.7,36.63962334]
[1673479519691,1e-08,1357.8,1357.7,36.08702334]
[1673479519942,1e-08,1357.8,1357.7,43.22241334]
[1673479520099,1e-08,1357.8,1357.7,50.58780334]
[1673479520519,1e-08,1357.8,1357.7,57.95319334]
[1673479521941,1e-08,1357.8,1357.7,48.86880334]
[1673479522112,1e-08,1357.8,1357.7,41.50341334]
[1673479522549,1e-08,1357.8,1357.7,48.86880334]
[1673479523260,1e-08,1357.8,1357.7,56.23419334]
[1673479524336,1e-08,1357.8,1357.7,48.86880334]
[1673479525075,1e-08,1357.8,1357.7,56.23419334]
[1673479525512,0.00200001,1357.8,1357.7,56.23119334]
[1673479525721,1e-08,1357.8,1357.7,34.13802334]
[1673479526032,1e-08,1357.8,1357.7,41.50341334]
[1673479526199,1e-08,1357.8,1357.7,56.23419334]
[1673479526408,1e-08,1357.8,1357.7,56.46419334]
[1673479526860,1e-08,1357.8,1357.7,49.09880334]
[1673479527072,1e-08,1357.8,1357.7,56.46419334]
[1673479527462,1e-08,1357.8,1357.7,49.09880334]
[1673479527672,1e-08,1357.8,1357.7,56.46419334]
[1673479527881,1e-08,1357.8,1357.7,58.94969474]
[1673479529044,1e-08,1357.8,1357.7,60.66869474]
[1673479529297,0.360713,1358.4,1357.8,11.803]
[1673479529484,0.14518233,1358.9,1358.2,3.79766064]
[1673479529485,3.181,1358.7,1358.2,3.79766064]
[1673479529700,0.5522,1358.6,1358.3,9.30424888]
[1673479530038,0.5522,1358.7,1358.3,9.40324888]
[1673479530340,0.5522,1358.7,1358.4,9.30424888]
[1673479530503,0.5522,1358.7,1358.4,3.89666064]
[1673479530504,0.1522,1358.7,1358.4,3.89666064]
[1673479530717,0.5521,1358.8,1358.4,30.22874888]